Workbook

Sheet المقسطون
J2: تاريخ اليوم : | K2: =TODAY() -> 2021-07-31
C3: ملف العميــل | D3: 2300 | E3: الاســم : | F3: =VLOOKUP(D3,B26:K61,2,0) -> 1
A4: نظـام الخصــم : | I4: حساب نســبة التقسـيط : | L4: نظام التحويل من تاريخ ميلادي لهجري :
E5: إسم البضاعة :
C6: السعر النقدي | D6: =VLOOKUP(D3,B26:K61,4,0) -> 45000 | I6: السعر | J6: الاشهر | L6: 2021-03-27
C7: قيمة العقد بالتقسيط | D7: =VLOOKUP(D3,B26:K61,5,0) -> 65250 | E7: موديلها : | I7: 50000 | J7: =VLOOKUP(D3,B26:K61,3,1) -> 40 | L7: =TEXT(L6,"[$-,197000]B2yyyy/mm/dd;@") -> 2021/03/27
C8: المقدم | D8: 0 | I8: الزيادة | J8: =SUM(I7*(J7%+5%)) -> 22500 | L8: =TEXT(L6,"[$-,197]B2yyyy/mm/dd;@") -> 1442/08/14
C9: القسط الشهري | D9: =VLOOKUP(D3,B26:K61,6,0) -> 1631.25 | I9: بعد الزيادة | J9: =SUM(I7+J8) -> 72500
C10: ماتم سداده من المبلغ | D10: =IF($D$11>$K$2,0,IF($D$12<$K$2,$D$7,(SUM(DATEDIF($D$11,$K$2,"Y")*12)+(DATEDIF($D$11,$K$2,"ym"))+(IF(DATEDIF($D$11,$K$2,"md")<>0,1,0)))*D9)) -> 65250 | F10: المدة | G10: =(D7-D8)/D9 -> 40 | I10: القسط الشهري | J10: =SUM(J9/J7) -> 1812.5
C11: بداية التسديد | D11: =VLOOKUP(D3,B26:K61,7,0) -> 2018-04-10 | F11: الربح كامل | G11: =D7-D6 -> 20250
C12: نهاية التسديد | D12: =VLOOKUP(D3,B26:K61,8,0) -> 2021-06-05 | F12: الربح الشهري | G12: =G11/G10 -> 506.25 | I12: التاريخ الميلادي والتاريخ الهجري :
C13: الأشهر المسددة | D13: =(D10/D9) -> 40 | F13: النسبة | G13: =(G11/(D6-D8))*100 -> 45
C14: الأشهر المتبقية | D14: =D16/D9 -> 0 | F14: النسبة السنوية | G14: =(G13/G10)*12 -> 13.5 | I14: ملف العميــل | J14: الاســم | L14: مدة العقـد | M14: من | N14: الى
F15: النسبة الشهرية | G15: =G13/G10 -> 1.125 | I15: =D3 -> 2300 | J15: =F3 -> 1 | L15: =G10 -> 40 | M15: =D11 -> 2018-04-10 | N15: =D12 -> 2021-06-05
C16: الباقي من المبلغ | D16: =D7-D10 -> 0 | I16: حالة الاشهر وقيمة العقد | M16: 2019-11-01 | N16: =EDATE(M16,L15) -> 2023-03-01
C17: الخصم | D17: =((D16*G14%)*(D14/12))/(1+((G14%)*(D14/12))) -> 0 | I17: الأشهر المسددة | J17: =IF(DATEDIF(M15,NOW(),"m")+1>L15,L15,DATEDIF(M15,NOW(),"m")+1) -> 40 | K17: المبــالغ المســدة | L17: =(J17*D9) -> 65250 | M17: حـالة العقــد
C18: المطلوب | D18: =D16-D17 -> 0 | I18: الأشهر المتبقية | J18: =L15-J17 -> 0 | K18: المبــالغ المتبـقية | L18: =(J18*D9) -> 0 | M18: =VLOOKUP(D3,B26:L61,11,0) -> سداد مبكر
C23: ملاحظة : اذا تم السداد قبل الموعد المحدد يتم إضافة 1000 ( الف ريال )
B25: رقم الملف | C25: الاسم | D25: مدة القرض ( بالشهر ) | E25: السعر النقدي | F25: القيمة بعد التقسيط | G25: القسط | H25: من | I25: الى | J25: الربــح | K25: الدخل الشهري | L25: حـالة العقـد | M25: سداد مبكر بتاريخ | N25: المبلغ المسدد
B26: 100 | C26: 1 | D26: 40 | E26: 45000 | F26: 46400 | G26: 1160 | H26: 2008-10-25 | I26: =MID(TEXT(H26,"b2dd.mm.yyyy"),1,2)-MID(TEXT(H26+ROUND((D26-1)*354.367056/12,0),"b2dd.mm.yyyy"),1,2)+H26+ROUND((D26-1)*354.367056/12,0) -> 2011-12-20 | J26: =SUM(E26*(D26%+5%)) -> 20250 | K26: 0 | L26: =IFERROR(IF(AND(M26<>"",M26<I26),"سداد مبكر",IF(TODAY()=I26,"العقد انتهى اليوم",IF(TODAY()>I26,"العقـد منتهى",IF(TODAY()<H26,"لم يتم تداولة","العقـد سارى")))),"") -> العقـد منتهى
B27: 200 | C27: 1 | D27: 40 | E27: 45000 | F27: 43500 | G27: 1087 | H27: 2009-01-21 | I27: 2012-03-18 | J27: 20250 | K27: 0 | L27: =IFERROR(IF(AND(M27<>"",M27<I27),"سداد مبكر",IF(TODAY()=I27,"العقد انتهى اليوم",IF(TODAY()>I27,"العقـد منتهى",IF(TODAY()<H27,"لم يتم تداولة","العقـد سارى")))),"") -> العقـد منتهى
B28: 300 | C28: 1 | D28: 40 | E28: 45000 | F28: 46400 | G28: 1160 | H28: 2010-03-10 | I28: 2013-05-05 | J28: 20250 | K28: 0 | L28: العقـد منتهى
B29: 400 | C29: 1 | D29: 40 | E29: 45000 | F29: 39160 | G29: 979 | H29: 2010-06-07 | I29: 2013-08-01 | J29: 20250 | K29: 0 | L29: العقـد منتهى
B30: 500 | C30: 1 | D30: 40 | E30: 45000 | F30: 43520 | G30: 1088 | H30: 2010-11-01 | I30: 2013-12-28 | J30: 20250 | K30: 0 | L30: العقـد منتهى
B31: 600 | C31: 1 | D31: 40 | E31: 45000 | F31: 69024 | G31: 5507 | H31: 2010-12-31 | I31: 2014-02-25 | J31: 20250 | K31: 0 | L31: العقـد منتهى
B32: 700 | C32: 1 | D32: 40 | E32: 45000 | F32: 38124 | G32: 2118 | H32: 2011-01-30 | I32: 2014-03-26 | J32: 20250 | K32: 0 | L32: العقـد منتهى
B33: 800 | C33: 1 | D33: 40 | E33: 45000 | F33: 57592 | G33: 2504 | H33: 2011-07-26 | I33: 2014-09-19 | J33: 20250 | K33: 0 | L33: العقـد منتهى
B34: 900 | C34: 1 | D34: 40 | E34: 45000 | F34: 58000 | G34: 1450 | H34: 2011-07-26 | I34: 2014-09-19 | J34: 20250 | K34: 0 | L34: العقـد منتهى
B35: 1000 | C35: 1 | D35: 40 | E35: 45000 | F35: 58000 | G35: 1450 | H35: 2011-07-26 | I35: 2014-09-19 | J35: 20250 | K35: 0 | L35: العقـد منتهى
B36: 1100 | C36: 1 | D36: 40 | E36: 45000 | F36: 58000 | G36: 1450 | H36: 2011-08-24 | I36: 2014-10-19 | J36: 20250 | K36: 0 | L36: العقـد منتهى
B37: 1200 | C37: 1 | D37: 40 | E37: 45000 | F37: 58000 | G37: 1450 | H37: 2011-08-24 | I37: 2014-10-19 | J37: 20250 | K37: 0 | L37: العقـد منتهى
B38: 1300 | C38: 1 | D38: 40 | E38: 45000 | F38: 76850 | G38: 1921 | H38: 2011-11-21 | I38: 2015-01-15 | J38: 20250 | K38: 0 | L38: العقـد منتهى
B39: 1400 | C39: 1 | D39: 40 | E39: 45000 | F39: 62360 | G39: 1559 | H39: 2012-02-17 | I39: 2015-04-14 | J39: 20250 | K39: 0 | L39: العقـد منتهى
B40: 1500 | C40: 1 | D40: 40 | E40: 45000 | F40: 60900 | G40: 1523 | H40: 2012-03-18 | I40: 2015-05-13 | J40: 20250 | K40: 0 | L40: العقـد منتهى
B41: 1600 | C41: 1 | D41: 40 | E41: 45000 | F41: 50760 | G41: 1269 | H41: 2014-06-23 | I41: 2017-08-17 | J41: 20250 | K41: 0 | L41: العقـد منتهى
B42: 1700 | C42: 1 | D42: 40 | E42: 45000 | F42: 50760 | G42: 1269 | H42: 2014-10-19 | I42: 2017-12-13 | J42: 20250 | K42: 0 | L42: العقـد منتهى
B43: 1800 | C43: 1 | D43: 40 | E43: 45000 | F43: 53640 | G43: =F43/D43 -> 1341 | H43: 2015-01-15 | I43: 2018-03-12 | J43: 20250 | K43: 0 | L43: العقـد منتهى
B44: 1900 | C44: 1 | D44: 40 | E44: 45000 | F44: 60920 | G44: 1523 | H44: 2015-05-13 | I44: 2018-07-08 | J44: 20250 | K44: 0 | L44: العقـد منتهى
B45: 2000 | C45: 1 | D45: 40 | E45: 45000 | F45: 60750 | G45: 1518.75 | H45: 2015-07-11 | I45: 2018-09-05 | J45: 20250 | K45: 0 | L45: العقـد منتهى
B46: 2100 | C46: 1 | D46: 40 | E46: 45000 | F46: 105624 | G46: 2640.6 | H46: 2017-02-21 | I46: 2020-04-18 | J46: 20250 | K46: 0 | L46: العقـد منتهى
B47: 2200 | C47: 1 | D47: 40 | E47: 45000 | F47: =E47+J47 -> 65250 | G47: 1631.25 | H47: 2018-01-12 | I47: 2021-03-08 | J47: 20250 | K47: 0 | L47: العقـد منتهى
B48: 2300 | C48: 1 | D48: 40 | E48: 45000 | F48: =E48+J48 -> 65250 | G48: 1631.25 | H48: 2018-04-10 | I48: 2021-06-05 | J48: 20250 | K48: 0 | L48: سداد مبكر | M48: 2019-02-07 | N48: 39889
B49: 2400 | C49: 1 | D49: 35 | E49: 50000 | F49: =E49+J49 -> 70000 | G49: =F49/D49 -> 2000 | H49: 2019-11-01 | I49: 2022-08-01 | J49: 20000 | K49: =G49 -> 2000 | L49: العقـد سارى
B50: 2500 | C50: 1 | D50: 35 | E50: 50000 | F50: =E50+J50 -> 70000 | G50: =F50/D50 -> 2000 | H50: 2020-09-25 | I50: =MID(TEXT(H50,"b2dd.mm.yyyy"),1,2)-MID(TEXT(H50+ROUND((D50-1)*354.367056/12,0),"b2dd.mm.yyyy"),1,2)+H50+ROUND((D50-1)*354.367056/12,0) -> 2023-06-26 | J50: =SUM(E50*(D50%+5%)) -> 20000 | K50: =G50 -> 2000 | L50: العقـد سارى
B51: 2600 | C51: 1 | D51: 35 | E51: 50000 | F51: =E51+J51 -> 70000 | G51: 2000 | H51: 2021-03-27 | I51: =MID(TEXT(H51,"b2dd.mm.yyyy"),1,2)-MID(TEXT(H51+ROUND((D51-1)*354.367056/12,0),"b2dd.mm.yyyy"),1,2)+H51+ROUND((D51-1)*354.367056/12,0) -> 2023-12-26 | J51: 20000 | K51: =G51 -> 2000 | L51: العقـد سارى
G52: =F52/40 -> 0
G53: 0
G54: 0
G55: 0
G56: 0
G57: 0
G58: 0
G59: 0
G60: 0
G61: 0
E62: =SUM(E26:E61) -> 1185000 | F62: =SUM(F26:F61) -> 1538784 | J62: =SUM(J26:J61) -> 525750 | K62: =SUM(K26:K61) -> 6000

Sheet حركة تسديد عميل(2)
F7: =TODAY() -> 2021-07-31
B8: رقم الملف | C8: 2500 | D8: القســـــــط | E8: =VLOOKUP(C8,المقسطون!$B$25:$H$60,6,0) -> 2000
D9: السعر النقدي | E9: =VLOOKUP(C8,المقسطون!$B$25:$H$60,4,0) -> 50000
B10: الاســـــم / | C10: =VLOOKUP('حركة تسديد عميل(2)'!C8,المقسطون!B25:I60,2,0) -> 1 | D10: الربـــــــــح | E10: =VLOOKUP(C8,المقسطون!B25:K60,9,0) -> 20000
B11: مدة القرض (بالاشهر) | C11: =VLOOKUP(C8,المقسطون!$B$25:$H$60,3,0) -> 35 | D11: قيمة القرض | E11: =VLOOKUP(C8,المقسطون!B25:I60,5,0) -> 70000
B12: تاريخ بداية القرض | C12: =VLOOKUP(C8,المقسطون!$B$25:$H$60,7,0) -> 2020-09-25 | D12: نسبة السداد بـ % | E12: =E16/C15 -> 0.56
B13: تاريخ نهاية القرض | C13: =TEXT(C12+((C11-1)*29.5),"B2yyyy/mm/")&TEXT(C12,"B2dd") -> 1444/12/08
B15: السعر النقدي | C15: =E9 -> 50000 | D15: التســديدات | E15: =SUM(F19:F59) -> 22000
B16: حركة تسديد عميل | D16: البـــاقي | E16: =SUM(C15-E15) -> 28000
B18: الشهــر | C18: تاريخ التحصيل | D18: رصيد القرض | E18: القسط | F18: التسديدات
B19: =IF(ROW()-18>$C$11,"",ROW()-18) -> 1 | C19: =IF(B19="","",TEXT($C$12+((B19-1)*29.5),"B2yyyy/mm/")&TEXT($C$12,"B2dd")) -> 1442/02/08 | D19: =E11 -> 70000 | E19: =IF(C19="","",IF($E$11="","",$E$11/$C$11)) -> 2000 | F19: =IF(B19="","",IF(TODAY()>=h2g(C19),E19,"")) -> 2000
B20: 2 | C20: =IF(B20="","",TEXT($C$12+((B20-1)*29.5),"B2yyyy/mm/")&TEXT($C$12,"B2dd")) -> 1442/03/08 | D20: =IF(C20="","",D19-E20) -> 68000 | E20: =IF(C20="","",IF($E$11="","",$E$11/$C$11)) -> 2000 | F20: =IF(B20="","",IF(TODAY()>=h2g(C20),E20,"")) -> 2000
B21: 3 | C21: 1442/04/08 | D21: =IF(C21="","",D20-E21) -> 66000 | E21: 2000 | F21: =IF(B21="","",IF(TODAY()>=h2g(C21),E21,"")) -> 2000
B22: 4 | C22: 1442/05/08 | D22: 64000 | E22: 2000 | F22: =IF(B22="","",IF(TODAY()>=h2g(C22),E22,"")) -> 2000
B23: 5 | C23: 1442/06/08 | D23: 62000 | E23: 2000 | F23: =IF(B23="","",IF(TODAY()>=h2g(C23),E23,"")) -> 2000
B24: 6 | C24: 1442/07/08 | D24: 60000 | E24: 2000 | F24: =IF(B24="","",IF(TODAY()>=h2g(C24),E24,"")) -> 2000
B25: 7 | C25: 1442/08/08 | D25: 58000 | E25: 2000 | F25: =IF(B25="","",IF(TODAY()>=h2g(C25),E25,"")) -> 2000
B26: 8 | C26: 1442/09/08 | D26: 56000 | E26: 2000 | F26: =IF(B26="","",IF(TODAY()>=h2g(C26),E26,"")) -> 2000
B27: 9 | C27: 1442/10/08 | D27: 54000 | E27: 2000 | F27: =IF(B27="","",IF(TODAY()>=h2g(C27),E27,"")) -> 2000
B28: 10 | C28: 1442/11/08 | D28: 52000 | E28: 2000 | F28: =IF(B28="","",IF(TODAY()>=h2g(C28),E28,"")) -> 2000
B29: 11 | C29: 1442/12/08 | D29: 50000 | E29: 2000 | F29: =IF(B29="","",IF(TODAY()>=h2g(C29),E29,"")) -> 2000
B30: 12 | C30: 1443/01/08 | D30: 48000 | E30: 2000 | F30: =IF(B30="","",IF(TODAY()>=h2g(C30),E30,"")) -> 
B31: 13 | C31: 1443/02/08 | D31: 46000 | E31: 2000 | F31: =IF(B31="","",IF(TODAY()>=h2g(C31),E31,"")) -> 
B32: 14 | C32: 1443/03/08 | D32: 44000 | E32: 2000 | F32: =IF(B32="","",IF(TODAY()>=h2g(C32),E32,"")) -> 
B33: 15 | C33: 1443/04/08 | D33: 42000 | E33: 2000 | F33: =IF(B33="","",IF(TODAY()>=h2g(C33),E33,"")) -> 
B34: 16 | C34: 1443/05/08 | D34: 40000 | E34: 2000 | F34: =IF(B34="","",IF(TODAY()>=h2g(C34),E34,"")) -> 
B35: 17 | C35: 1443/06/08 | D35: 38000 | E35: 2000 | F35: =IF(B35="","",IF(TODAY()>=h2g(C35),E35,"")) -> 
B36: 18 | C36: 1443/07/08 | D36: 36000 | E36: 2000 | F36: =IF(B36="","",IF(TODAY()>=h2g(C36),E36,"")) -> 
B37: 19 | C37: 1443/08/08 | D37: 34000 | E37: 2000 | F37: =IF(B37="","",IF(TODAY()>=h2g(C37),E37,"")) -> 
B38: 20 | C38: 1443/09/08 | D38: 32000 | E38: 2000 | F38: =IF(B38="","",IF(TODAY()>=h2g(C38),E38,"")) -> 
B39: 21 | C39: 1443/10/08 | D39: 30000 | E39: 2000 | F39: =IF(B39="","",IF(TODAY()>=h2g(C39),E39,"")) -> 
B40: 22 | C40: 1443/11/08 | D40: 28000 | E40: 2000 | F40: =IF(B40="","",IF(TODAY()>=h2g(C40),E40,"")) -> 
B41: 23 | C41: 1443/12/08 | D41: 26000 | E41: 2000 | F41: =IF(B41="","",IF(TODAY()>=h2g(C41),E41,"")) -> 
B42: 24 | C42: 1444/01/08 | D42: 24000 | E42: 2000 | F42: =IF(B42="","",IF(TODAY()>=h2g(C42),E42,"")) -> 
B43: 25 | C43: 1444/02/08 | D43: 22000 | E43: 2000 | F43: =IF(B43="","",IF(TODAY()>=h2g(C43),E43,"")) -> 
B44: 26 | C44: 1444/03/08 | D44: 20000 | E44: 2000 | F44: =IF(B44="","",IF(TODAY()>=h2g(C44),E44,"")) -> 
B45: 27 | C45: 1444/04/08 | D45: 18000 | E45: 2000 | F45: =IF(B45="","",IF(TODAY()>=h2g(C45),E45,"")) -> 
B46: 28 | C46: 1444/05/08 | D46: 16000 | E46: 2000 | F46: =IF(B46="","",IF(TODAY()>=h2g(C46),E46,"")) -> 
B47: 29 | C47: 1444/06/08 | D47: 14000 | E47: 2000 | F47: =IF(B47="","",IF(TODAY()>=h2g(C47),E47,"")) -> 
B48: 30 | C48: 1444/07/08 | D48: 12000 | E48: 2000 | F48: =IF(B48="","",IF(TODAY()>=h2g(C48),E48,"")) -> 
B49: 31 | C49: 1444/08/08 | D49: 10000 | E49: 2000 | F49: =IF(B49="","",IF(TODAY()>=h2g(C49),E49,"")) -> 
B50: 32 | C50: 1444/09/08 | D50: 8000 | E50: 2000 | F50: =IF(B50="","",IF(TODAY()>=h2g(C50),E50,"")) -> 
B51: 33 | C51: 1444/10/08 | D51: 6000 | E51: 2000 | F51: =IF(B51="","",IF(TODAY()>=h2g(C51),E51,"")) -> 
B52: 34 | C52: 1444/11/08 | D52: 4000 | E52: 2000 | F52: =IF(B52="","",IF(TODAY()>=h2g(C52),E52,"")) -> 
B53: 35 | C53: 1444/12/08 | D53: 2000 | E53: 2000 | F53: =IF(B53="","",IF(TODAY()>=h2g(C53),E53,"")) -> 
E54: =IF(C54="","",IF($E$14="","",$E$14/$C$11)) ->  | F54: =IF(B54="","",IF(TODAY()>=h2g(C54),E54,"")) -> 
F55: =IF(B55="","",IF(TODAY()>=h2g(C55),E55,"")) -> 
F56: =IF(B56="","",IF(TODAY()>=h2g(C56),E56,"")) -> 
F57: =IF(B57="","",IF(TODAY()>=h2g(C57),E57,"")) -> 
F58: =IF(B58="","",IF(TODAY()>=h2g(C58),E58,"")) -> 
B59: =IF(ROW()-18>$C$11,"",ROW()-18) ->  | E59: =IF(C59="","",IF($E$11="","",$E$11/$C$11)) ->  | F59: =IF(B59="","",IF(TODAY()>=h2g(C59),E59,"")) -> 
